bitfinex/quotes_SOLUSD_20241008
["timestamp","ask_amount","ask_price","bid_price","bid_amount"]
[1728406248170,6.9622,143.64,143.6,24.3728]
[1728406248358,6.9623,143.63,143.6,17.4092]
[1728406248554,0.12549,143.67,143.57,6.3199]
[1728406248766,6.9643,143.59,143.57,6.3199]
[1728406249082,6.9643,143.59,143.55,6.966]
[1728406249269,27.5117,143.64,143.54,40.0896]
[1728406249270,6.9647,143.58,143.54,40.0896]
[1728406249476,6.9653,143.57,143.54,33.1231]
[1728406249662,6.9653,143.57,143.54,15.7075]
[1728406250569,6.9649,143.58,143.54,22.6741]
[1728406250776,6.9649,143.58,143.55,1.39299339]
[1728406251480,6.9642,143.59,143.55,8.35899339]
[1728406251681,0.12549,143.61,143.55,18.80829339]
[1728406252169,7.08909,143.61,143.57,6.9649]
[1728406252377,0.12549,143.61,143.58,1.39273591]
[1728406252568,0.12549,143.61,143.56,1.39272735]
[1728406252767,7.08879,143.61,143.57,6.9648]
[1728406252977,7.08879,143.61,143.58,1.39273749]
[1728406253578,6.9628,143.62,143.58,8.35723749]
[1728406253790,6.9634,143.61,143.58,1.39273749]
[1728406253963,6.9634,143.61,143.57,24.3776]
[1728406254582,6.9638,143.6,143.57,17.4125]
[1728406254761,6.9638,143.6,143.57,18.80525137]
[1728406254962,6.9638,143.6,143.57,17.4125]
[1728406255155,0.12549,143.64,143.55,6.9661]
[1728406255156,6.9645,143.59,143.55,6.9661]
[1728406255379,6.9645,143.59,143.54,33.1234]
[1728406255380,6.9648,143.58,143.54,40.0897]
[1728406255580,6.9657,143.56,143.54,15.7075]
[1728406255903,6.9657,143.56,143.53,6.1092]
[1728406256580,6.9671,143.54,143.5,21.9927]
[1728406257155,6.9673,143.53,143.5,15.0242]
[1728406257360,6.9676,143.52,143.5,15.0242]
[1728406257787,6.9676,143.52,143.49,0.8557956]
[1728406258160,0.12549,143.51,143.49,0.8557956]
[1728406258364,6.9683,143.51,143.49,0.8557956]
[1728406259879,7.09409,143.5,143.49,0.8557956]
[1728406263666,17.20109,143.5,143.49,0.8557956]
[1728406264169,17.426,143.47,143.4,300.0]
[1728406264473,7.09849,143.41,143.4,300.0]
[1728406264875,0.12549,143.49,143.4,300.0]
[1728406265079,10.107,143.5,143.41,1.39439666]
[1728406265279,0.12549,143.49,143.41,18.82609666]
[1728406265587,6.9711,143.45,143.41,17.4317]
[1728406266088,6.9721,143.43,143.4,300.0]
[1728406266281,34.8555,143.45,143.4,300.0]
[1728406266462,7.09849,143.41,143.4,300.0]
[1728406269381,17.4282,143.45,143.4,300.0]
[1728406269578,10.107,143.47,143.4,300.0]
[1728406270173,6.973,143.41,143.4,300.0]
[1728406271287,7.09849,143.41,143.4,300.0]
[1728406272466,6.9725,143.42,143.4,300.0]
[1728406274168,6.973,143.41,143.4,300.0]
[1728406274387,7.09849,143.41,143.4,300.0]
[1728406283790,6.973,143.41,143.4,300.0]
[1728406285398,7.09849,143.41,143.4,300.0]
[1728406291502,6.973,143.41,143.4,300.0]
[1728406292788,6.9727,143.42,143.4,300.0]
[1728406293195,6.9719,143.44,143.41,1.39449284]
[1728406293436,6.972,143.43,143.4,300.0]
[1728406293596,17.4261,143.47,143.4,306.9734]
[1728406293903,6.9716,143.44,143.4,306.9734]
[1728406294483,17.4223,143.5,143.41,25.28429759]
[1728406294691,6.9704,143.47,143.43,6.972]
[1728406294892,17.4223,143.5,143.44,1.39404462]
[1728406295202,6.9697,143.48,143.44,8.36554462]
[1728406296012,17.4244,143.48,143.41,6.4577]
[1728406296307,0.12549,143.47,143.41,6.4577]
[1728406296677,6.9716,143.44,143.41,6.4577]
[1728406297091,6.9707,143.46,143.42,8.36676167]
[1728406297493,6.971,143.45,143.42,1.39426167]
[1728406298803,0.12549,143.47,143.42,8.36676167]
[1728406299010,6.9704,143.47,143.43,6.972]
[1728406299391,6.9707,143.46,143.44,1.39404931]
[1728406299594,6.9707,143.46,143.42,24.4035]
[1728406299794,6.9701,143.47,143.43,6.9719]
[1728406300397,6.97,143.48,143.44,23.5643]
[1728406301697,6.969,143.5,143.46,6.9705]
[1728406301893,6.969,143.5,143.47,1.39375089]
[1728406302690,6.9691,143.49,143.47,1.39375089]
[1728406303287,6.9691,143.49,143.46,1.39377694]
[1728406304090,17.4178,143.54,143.47,6.5037]
[1728406304387,17.4178,143.54,143.48,1.39361128]
[1728406304911,6.9685,143.51,143.48,1.39361128]
[1728406305595,6.9686,143.5,143.47,6.5037]
[1728406305797,6.9694,143.49,143.47,6.5037]
[1728406305985,6.9688,143.5,143.47,6.5037]
[1728406306604,6.9691,143.49,143.47,6.5037]
[1728406307787,0.12549,143.53,143.44,16.5932]
[1728406307987,0.12549,143.53,143.43,6.5245]
[1728406307988,6.9715,143.44,143.43,6.5245]
[1728406308436,6.9725,143.42,143.4,323.1028]
[1728406308602,17.4267,143.46,143.4,323.1028]
[1728406308900,6.9727,143.42,143.4,323.1028]
[1728406310794,0.12549,143.45,143.4,323.1028]
[1728406310993,6.9719,143.44,143.41,1.39435281]
[1728406312010,6.9719,143.44,143.4,330.0759]
[1728406319018,0.12549,143.45,143.4,323.1028]
[1728406319218,0.12549,143.46,143.4,300.0]
[1728406319409,6.973,143.41,143.4,300.0]
[1728406319613,7.09849,143.41,143.4,300.0]
[1728406321116,6.9727,143.42,143.4,300.0]
[1728406321334,0.12549,143.44,143.4,300.0]
[1728406321627,6.973,143.41,143.4,300.0]
[1728406322003,0.12549,143.44,143.4,300.0]
[1728406322004,6.9725,143.42,143.4,300.0]
[1728406322219,0.12549,143.44,143.41,1.39445999]
[1728406322423,6.9717,143.44,143.41,1.39445999]
[1728406324308,0.12549,143.47,143.41,1.39445999]
[1728406324616,6.9712,143.45,143.41,6.9729]
[1728406325713,6.9712,143.45,143.42,1.39419896]
[1728406326411,6.9712,143.45,143.41,6.9729]
[1728406326727,6.9712,143.45,143.42,1.39416065]
[1728406328231,6.9712,143.45,143.42,6.9725]
[1728406328730,17.4211,143.51,143.44,22.0957]
[1728406328905,17.4175,143.54,143.45,1.39370994]
[1728406329206,37.3984,143.56,143.45,17.4273]
[1728406329207,44.65899058,143.56,143.45,17.4273]
[1728406329405,17.4194,143.52,143.44,22.0957]
[1728406329634,6.9706,143.46,143.44,22.0957]
[1728406329932,6.9703,143.47,143.44,22.0957]
[1728406330917,0.12549,143.52,143.44,39.5243]
[1728406331112,6.9688,143.5,143.46,6.9705]
[1728406331309,6.9694,143.49,143.45,6.9708]
[1728406331517,44.65899058,143.56,143.44,39.5243]
[1728406331707,44.65899058,143.56,143.46,6.9705]
[1728406331708,6.9687,143.5,143.46,6.9705]
[1728406332024,6.9692,143.49,143.45,6.9709]
[1728406332210,17.4176,143.54,143.46,18.81985019]
[1728406332405,6.9678,143.52,143.48,6.9696]
[1728406332599,6.9678,143.52,143.46,39.20824125]
[1728406332600,17.4176,143.54,143.49,1.3935351]
[1728406332804,17.4176,143.54,143.46,24.3964]
[1728406332805,6.9686,143.5,143.46,24.3964]
[1728406333416,6.9701,143.47,143.44,22.0957]
[1728406333622,6.9697,143.48,143.44,29.0672]
[1728406334120,6.9692,143.49,143.45,6.971]
[1728406334506,6.9696,143.48,143.44,29.0671]
[1728406335426,0.12549,143.51,143.45,18.82100685]
[1728406335721,6.9685,143.51,143.47,6.97]
[1728406335921,17.4164,143.55,143.46,6.9705]
[1728406335922,6.9687,143.5,143.46,6.9705]
[1728406336515,6.9682,143.51,143.47,8.36365014]
[1728406336720,6.9687,143.5,143.46,6.9704]
[1728406337626,0.12549,143.52,143.45,17.4272]
[1728406337924,7.26019129,143.57,143.49,6.9688]
[1728406337925,6.9673,143.53,143.49,6.9688]
[1728406338306,283.2197,143.58,143.47,17.4249]
[1728406338513,6.9682,143.51,143.47,24.3948]
[1728406338716,17.4148,143.56,143.47,17.4249]
[1728406339029,6.9678,143.52,143.48,6.9695]
[1728406339718,6.9673,143.53,143.49,8.36244894]
[1728406340121,6.9673,143.53,143.49,6.969]
[1728406340934,6.9663,143.55,143.51,6.9678]
[1728406341114,6.9663,143.55,143.52,1.39317936]
[1728406341632,6.9653,143.57,143.53,6.967]
[1728406341931,17.4116,143.59,143.52,1.39317936]
[1728406341932,6.9657,143.56,143.54,1.39305144]
[1728406342112,6.9662,143.55,143.51,24.3876]
[1728406344033,6.9658,143.56,143.52,8.36073784]
[1728406344325,17.4116,143.59,143.52,1.39313784]
[1728406344531,6.9644,143.59,143.55,6.9661]
[1728406344716,6.9644,143.59,143.56,1.39288565]
[1728406344914,10.107,143.65,143.56,1.39288565]
[1728406345219,6.9633,143.61,143.57,8.35748196]
[1728406345403,6.9633,143.61,143.57,6.9649]
[1728406345720,6.9638,143.6,143.56,13.1629]
[1728406350305,0.12549,143.62,143.56,6.1973]
[1728406350509,6.9651,143.58,143.56,6.1973]
[1728406350707,6.9644,143.59,143.56,6.1973]
[1728406350911,6.9648,143.58,143.56,6.1973]
[1728406351935,0.12549,143.62,143.56,6.1973]
[1728406352123,6.9642,143.6,143.56,6.1973]
[1728406352519,6.9643,143.59,143.56,6.1973]
[1728406354915,6.9648,143.58,143.56,6.1973]
[1728406355118,6.9652,143.57,143.53,6.967]
[1728406355534,6.966,143.56,143.52,13.4235]
[1728406355741,0.12549,143.58,143.52,6.456]
[1728406355923,17.4133,143.57,143.52,6.456]
[1728406356235,6.9665,143.55,143.51,6.968]
[1728406357032,6.9658,143.56,143.52,6.9673]
[1728406357339,6.9658,143.56,143.5,53.53699106]
[1728406357340,6.9665,143.55,143.51,6.968]
[1728406360226,6.966,143.56,143.52,6.9674]
[1728406360439,6.966,143.56,143.53,1.39305316]
[1728406360843,6.9662,143.55,143.51,6.9679]
[1728406362544,6.967,143.54,143.5,60.50539106]
[1728406362741,6.967,143.54,143.5,53.18192195]
[1728406362742,6.9671,143.54,143.5,53.18192195]
[1728406362917,6.9672,143.53,143.5,46.21332195]
[1728406363335,6.9672,143.53,143.5,28.79212195]
[1728406363537,0.12549,143.57,143.5,15.7274]
[1728406363718,10.107,143.59,143.47,17.4241]
[1728406363719,6.9684,143.51,143.48,13.06472195]
[1728406364134,0.12549,143.55,143.5,13.06472195]
[1728406364421,0.12549,143.55,143.46,15.6519]
[1728406364422,6.9672,143.53,143.49,24.3913]
[1728406365224,0.12549,143.55,143.49,17.4227]
[1728406365425,0.12549,143.55,143.46,53.4914313]
[1728406366342,6.9684,143.51,143.47,6.9697]
[1728406367045,6.9678,143.52,143.48,6.9695]
[1728406367238,6.9678,143.52,143.49,1.39347301]
[1728406367434,6.9678,143.52,143.48,6.9695]
[1728406368343,6.9678,143.52,143.49,1.39347576]
[1728406368946,6.9678,143.52,143.48,6.9695]
[1728406369439,0.12549,143.55,143.5,6.9685]
[1728406369440,6.9672,143.53,143.5,6.9685]
[1728406369650,6.9668,143.54,143.51,1.39337142]
[1728406369946,6.9675,143.53,143.49,6.969]
[1728406370122,6.9682,143.51,143.48,24.3932]
[1728406370328,6.9682,143.51,143.48,17.4238]
[1728406371433,6.9682,143.51,143.48,24.3933]
[1728406371839,0.12549,143.55,143.49,1.39350183]
[1728406372151,6.9671,143.53,143.49,6.9689]
[1728406374120,6.9677,143.52,143.49,6.9689]
[1728406375134,6.9677,143.52,143.49,6.9689]
[1728406377938,6.9681,143.51,143.48,17.4238]
[1728406378344,0.12549,143.53,143.46,16.86340105]
[1728406379249,6.9688,143.5,143.46,23.83380105]
[1728406380259,0.12549,143.53,143.46,16.86340105]
[1728406380552,6.9696,143.48,143.46,16.86340105]
[1728406381148,0.12549,143.51,143.46,16.86340105]
[1728406381334,6.9696,143.48,143.46,16.86340105]
[1728406381535,6.9693,143.49,143.46,16.86340105]
[1728406381854,17.4194,143.52,143.46,1.21150105]
[1728406381855,6.97,143.47,143.46,1.21150105]
[1728406382271,0.12549,143.51,143.41,6.2893]
[1728406382272,6.9716,143.44,143.41,6.2893]
[1728406382731,10.107,143.53,143.41,1.21136966]
[1728406382732,6.9725,143.42,143.41,1.21136966]
[1728406382937,17.4266,143.46,143.4,300.0]
[1728406383144,6.9716,143.44,143.4,308.18486475]
[1728406384533,6.9716,143.44,143.4,321.26715827]
[1728406384963,6.9712,143.45,143.4,321.26715827]
[1728406387461,0.12549,143.48,143.4,321.26715827]
[1728406387651,0.12549,143.48,143.4,314.29375827]
[1728406387955,6.9729,143.42,143.4,301.21146475]
[1728406388150,6.973,143.41,143.4,300.0]
[1728406388467,7.09849,143.41,143.4,300.0]
[1728406388944,6.973,143.41,143.4,300.0]
[1728406389150,0.12549,143.46,143.4,313.08229352]
[1728406389446,6.9721,143.43,143.4,313.08229352]
[1728406389758,0.12549,143.46,143.41,1.39438966]
[1728406389759,6.9716,143.44,143.41,1.39438966]
[1728406389932,10.107,143.47,143.41,1.39438966]
[1728406390135,34.60165383,143.64,143.42,13.08229352]
[1728406390136,62.371,143.51,143.42,13.08229352]
[1728406390363,6.9702,143.47,143.43,8.36602793]
[1728406390665,6.9708,143.46,143.42,36.18439352]
[1728406391244,6.9702,143.47,143.43,6.972]
[1728406391468,6.9702,143.47,143.43,21.44837181]
[1728406391763,0.12549,143.5,143.43,13.08229352]
[1728406391945,6.9707,143.46,143.43,13.08229352]
[1728406392561,6.9702,143.47,143.43,6.9718]
[1728406392862,6.9699,143.48,143.44,1.39398568]
[1728406393456,27.5282,143.51,143.43,17.4297]
[1728406393457,6.9694,143.49,143.43,17.4297]
[1728406393661,17.4212,143.51,143.43,17.4297]
[1728406393854,6.9704,143.47,143.43,17.4297]
[1728406395764,6.9704,143.47,143.43,24.4016]
[1728406397066,6.9691,143.49,143.45,6.9707]
[1728406397269,6.9691,143.49,143.46,1.39373412]
[1728406397772,27.5246,143.54,143.46,1.39373412]
[1728406397947,6.9687,143.5,143.46,8.36423412]
[1728406398752,6.9682,143.51,143.47,6.97]
[1728406398951,6.9682,143.51,143.48,1.39363466]
[1728406399277,6.9683,143.51,143.48,1.39363466]
[1728406400157,6.9683,143.51,143.47,6.97]
[1728406400774,6.9689,143.5,143.46,13.5363]
[1728406402067,0.12549,143.53,143.46,6.5659]
[1728406402277,6.9686,143.5,143.46,13.5363]
[1728406404073,6.9686,143.5,143.46,6.5659]
[1728406404278,0.12549,143.53,143.47,6.97]
[1728406404451,6.9682,143.51,143.47,6.97]
[1728406404646,6.9682,143.51,143.48,1.39355164]
[1728406404849,6.9678,143.52,143.48,8.36305164]
[1728406405051,6.9675,143.53,143.49,6.969]
[1728406405252,17.4137,143.57,143.5,1.39340426]
[1728406405468,10.107,143.58,143.48,15.3994]
[1728406405469,17.4159,143.55,143.48,15.3994]
[1728406406076,17.4159,143.55,143.49,1.3934914]
[1728406406258,6.9673,143.53,143.49,8.3624914]
[1728406407571,6.9677,143.52,143.48,39.7924]
[1728406408179,6.9675,143.53,143.49,6.969]
[1728406408380,10.107,143.58,143.48,32.823]
[1728406408678,0.12549,143.57,143.48,32.823]
[1728406409764,6.967,143.54,143.5,6.9684]
[1728406410084,0.12549,143.57,143.51,1.39329952]
[1728406410269,6.9663,143.55,143.51,6.968]
[1728406410660,6.9657,143.56,143.52,8.36078218]
[1728406410859,6.9657,143.56,143.52,6.9676]
[1728406411284,6.9665,143.55,143.5,24.3896]
[1728406411468,17.4128,143.58,143.48,15.3994]
[1728406411469,6.9674,143.53,143.48,15.3994]
[1728406411681,6.9674,143.53,143.49,6.969]
[1728406413180,6.967,143.54,143.5,6.9685]
[1728406413782,6.967,143.54,143.49,17.4224]
[1728406413783,6.9672,143.53,143.49,17.4224]
[1728406414077,0.12549,143.58,143.5,1.3932589]
[1728406414390,6.9662,143.55,143.51,6.9678]
[1728406414590,6.9662,143.55,143.52,1.39318461]
[1728406414886,6.9662,143.55,143.51,6.9678]
[1728406417065,0.12549,143.58,143.52,6.3444]
[1728406417266,6.9654,143.57,143.53,8.3600923]
[1728406418588,6.9658,143.56,143.52,13.312]
[1728406422189,6.9671,143.53,143.49,6.9687]
[1728406422581,6.9671,143.53,143.48,52.1931237]
[1728406422769,6.9668,143.54,143.5,20.0359237]
[1728406423795,6.9672,143.53,143.5,13.0673237]
[1728406423965,6.9668,143.54,143.5,20.0359237]
[1728406425165,6.9658,143.56,143.52,6.9675]
[1728406425374,6.9654,143.57,143.53,8.35979891]
[1728406425589,6.9653,143.57,143.54,13.0673237]
[1728406426090,6.9657,143.56,143.52,37.4536237]
[1728406426490,17.411,143.59,143.49,37.82940343]
[1728406426698,0.12549,143.58,143.49,17.4217]
[1728406426882,0.12549,143.58,143.5,6.9684]
[1728406427084,6.9671,143.53,143.49,24.3906]
[1728406427795,6.9667,143.54,143.49,17.4217]
[1728406427984,0.12549,143.56,143.5,1.39327323]
[1728406428609,6.9665,143.55,143.51,6.9681]
[1728406429803,6.9667,143.54,143.51,6.9681]
[1728406431091,6.9665,143.55,143.51,6.9681]
[1728406434696,6.9663,143.55,143.52,8.36074413]
[1728406434993,6.9663,143.55,143.51,24.3881]
[1728406436099,6.9654,143.57,143.53,6.9667]
[1728406437193,6.9654,143.57,143.54,1.39297295]
[1728406437700,6.9646,143.59,143.53,17.4177]
[1728406438003,6.9646,143.59,143.55,6.9658]
[1728406438200,6.9648,143.58,143.54,29.359]
[1728406439379,6.9644,143.59,143.55,8.35870766]
[1728406439580,0.12549,143.62,143.54,22.3924]
[1728406439885,6.9648,143.58,143.54,29.3589]
[1728406440408,6.9643,143.59,143.55,8.35872286]
[1728406440602,6.9643,143.59,143.55,6.9659]
[1728406440782,0.12549,143.62,143.55,6.9659]
[1728406440983,6.9647,143.58,143.55,6.9659]
[1728406441486,6.9647,143.58,143.54,29.3589]
[1728406445312,22.60110742,143.65,143.56,17.4139]
[1728406445525,6.9623,143.63,143.59,6.964]
[1728406445734,6.9616,143.65,143.6,1.39233152]
[1728406446010,6.9611,143.66,143.61,6.9629]
[1728406446181,17.4011,143.67,143.59,22.5004]
[1728406446381,34.7998,143.68,143.59,22.5004]
[1728406446602,6.9629,143.62,143.59,22.5004]
[1728406446808,6.9628,143.62,143.59,22.5004]
[1728406446988,6.9629,143.62,143.59,22.5004]
[1728406447798,10.107,143.69,143.6,20.40770343]
[1728406447998,44.8969,143.72,143.62,20.40770343]
[1728406448215,44.8969,143.72,143.61,17.4079]
[1728406448414,6.9613,143.66,143.61,24.371]
[1728406449421,6.9605,143.67,143.62,6.9626]
[1728406449892,10.107,143.72,143.62,20.40770343]
[1728406450099,6.9595,143.69,143.64,50.17330343]
[1728406450319,10.107,143.75,143.66,20.40770343]
[1728406450508,6.958,143.72,143.67,1.39152248]
[1728406450703,6.958,143.72,143.68,6.9598]
[1728406450907,6.9576,143.73,143.69,6.9594]
[1728406451214,6.9576,143.73,143.68,6.9597]
[1728406451402,6.9581,143.72,143.67,24.3603]
[1728406451602,17.3908,143.76,143.67,24.3603]
[1728406451603,6.9586,143.71,143.67,24.3603]
[1728406452711,6.9586,143.71,143.67,17.4001]
[1728406453407,6.958,143.72,143.68,6.9598]
[1728406454407,0.12549,143.75,143.68,6.9598]
[1728406454614,6.9576,143.73,143.68,6.9598]
[1728406455114,0.12549,143.75,143.67,17.4001]
[1728406455321,6.9589,143.7,143.66,27.36850343]
[1728406455497,6.9589,143.7,143.66,6.9608]
[1728406456109,6.9585,143.71,143.66,6.9608]
[1728406456618,0.12549,143.73,143.64,47.1695]
[1728406457418,17.3956,143.72,143.64,40.2078]
[1728406457637,6.9604,143.67,143.64,22.8039]
[1728406457925,6.961,143.66,143.61,30.4865]
[1728406458302,6.9614,143.65,143.61,30.4865]
[1728406458802,0.12549,143.69,143.61,23.5237]
[1728406459131,6.9614,143.65,143.61,23.5237]
[1728406459497,6.9619,143.64,143.62,1.39217037]
[1728406459914,6.9619,143.64,143.61,6.116]
[1728406460297,6.9619,143.64,143.62,1.39228038]
[1728406460704,17.4007,143.68,143.62,1.39228038]
[1728406460918,6.9615,143.65,143.61,13.0792]
[1728406461118,6.9615,143.65,143.62,1.3921485]
[1728406462227,6.9615,143.65,143.61,13.0792]
[1728406465420,0.12549,143.67,143.61,6.116]
[1728406465605,6.9626,143.63,143.61,6.116]
[1728406467007,6.9629,143.62,143.6,16.5501]
[1728406468305,6.9625,143.63,143.6,16.5501]
[1728406468508,6.9625,143.63,143.61,1.39236815]
[1728406468709,0.12549,143.67,143.61,1.39236815]
[1728406468923,6.9615,143.65,143.61,8.35526815]
[1728406469321,6.9615,143.65,143.61,6.9629]
[1728406470234,6.9615,143.65,143.62,1.39217434]
[1728406470917,6.9609,143.66,143.62,8.35487434]
[1728406472124,6.9609,143.66,143.62,6.9627]
[1728406472734,17.52429,143.69,143.6,16.5501]
[1728406473112,6.9619,143.64,143.6,40.9229]
[1728406474326,6.9614,143.65,143.61,6.9632]
[1728406474540,17.52429,143.69,143.61,1.39220972]
[1728406474721,6.961,143.66,143.62,6.9624]
[1728406475030,6.961,143.66,143.63,1.39204394]
[1728406476032,6.961,143.66,143.62,6.9624]
[1728406476827,17.52429,143.69,143.6,33.9593]
[1728406477733,6.9621,143.64,143.6,40.9227]
[1728406479237,17.52429,143.69,143.6,33.9593]
[1728406479538,6.9616,143.65,143.61,6.9632]
[1728406480040,17.52429,143.69,143.6,33.9593]
[1728406480335,6.9618,143.64,143.6,40.9228]
[1728406481051,6.9615,143.65,143.61,6.9632]
[1728406481409,17.52429,143.69,143.6,33.9593]
[1728406481708,6.9618,143.64,143.6,40.9229]
[1728406483210,0.12549,143.69,143.6,33.9593]
[1728406483411,6.9624,143.63,143.6,33.9593]
[1728406484627,6.9624,143.63,143.6,16.5501]
[1728406486045,6.9624,143.63,143.61,1.39232204]
[1728406486223,6.9624,143.63,143.6,23.5138]
[1728406486620,6.9624,143.63,143.6,16.5501]
[1728406488572,6.9632,143.62,143.58,6.9645]
[1728406488738,6.9626,143.63,143.59,6.964]
[1728406488940,6.9629,143.62,143.58,24.3758]
[1728406489444,17.4036,143.65,143.59,13.04742097]
[1728406489640,6.9629,143.62,143.59,13.04742097]
[1728406491253,6.9634,143.61,143.58,17.4113]
[1728406492334,6.9634,143.61,143.58,24.376]
[1728406493552,6.963,143.62,143.58,24.376]
[1728406496352,17.4036,143.65,143.58,17.4113]
[1728406496844,6.963,143.62,143.58,24.376]
[1728406499546,6.9635,143.61,143.58,17.4113]
[1728406500425,17.4036,143.65,143.58,24.376]
[1728406500620,6.9629,143.62,143.58,24.376]
[1728406500857,17.4036,143.65,143.58,17.4113]
[1728406501023,6.9638,143.6,143.57,19.66332097]
[1728406501219,6.9638,143.6,143.56,22.0915]
[1728406501220,17.406,143.63,143.56,15.126]
[1728406501437,6.9648,143.58,143.55,30.46212097]
[1728406501626,6.9653,143.57,143.54,6.1156]
[1728406501825,17.4084,143.61,143.54,6.1156]
[1728406501826,6.9651,143.58,143.54,13.0822]
[1728406502153,6.9651,143.58,143.55,8.35895777]
[1728406502454,6.9648,143.58,143.54,30.4982]
[1728406503932,17.4084,143.61,143.52,15.3234]
[1728406504250,17.4084,143.61,143.52,28.37082097]
[1728406504251,0.12549,143.6,143.52,28.37082097]
[1728406504743,6.966,143.56,143.52,35.33832097]
[1728406505330,17.4107,143.59,143.52,28.37082097]
[1728406505524,6.9657,143.56,143.52,35.33822097]
[1728406505936,6.9657,143.56,143.52,28.37082097]
[1728406506135,17.4107,143.59,143.53,6.9671]
[1728406506446,6.9648,143.58,143.54,21.40687865]
[1728406506850,10.107,143.64,143.56,13.04742097]
[1728406507033,6.9633,143.61,143.57,6.9649]
[1728406507751,6.9624,143.63,143.59,6.9639]
[1728406507959,6.9624,143.63,143.6,1.39241604]
[1728406508646,6.9618,143.64,143.6,21.40343701]
[1728406509238,6.9627,143.63,143.6,13.04742097]
[1728406509638,27.5078,143.68,143.6,13.04742097]
[1728406509839,6.9628,143.62,143.6,13.04742097]
[1728406510244,6.9628,143.62,143.59,17.4103]
[1728406510845,0.12549,143.65,143.59,17.4103]
[1728406511076,17.4024,143.66,143.59,17.4103]
[1728406511355,6.9619,143.64,143.6,21.40346576]
[1728406511536,6.9623,143.63,143.6,13.04742097]
[1728406511729,17.4012,143.67,143.6,13.04742097]
[1728406511935,6.9628,143.62,143.6,13.04742097]
[1728406513232,6.9624,143.63,143.59,37.42182097]
[1728406514635,6.9624,143.63,143.6,1.3923811]
[1728406514835,6.962,143.64,143.6,8.3560811]
[1728406515040,6.962,143.64,143.6,6.9637]
[1728406515537,6.9624,143.63,143.59,37.42182097]
[1728406516960,6.9622,143.64,143.6,8.35578494]
[1728406517150,6.9622,143.64,143.6,6.9634]
[1728406517552,19.9677,143.7,143.61,30.45522097]
[1728406517737,19.9677,143.7,143.62,6.9627]
[1728406517738,6.9611,143.66,143.62,6.9627]
[1728406518579,19.9677,143.7,143.62,6.9627]
[1728406518859,6.9613,143.65,143.62,6.9627]
[1728406519266,19.9677,143.7,143.62,6.9627]
[1728406519556,19.9677,143.7,143.64,6.9618]
[1728406519557,6.9599,143.68,143.64,6.9618]
[1728406519740,6.9599,143.68,143.65,1.3919172]
[1728406520764,6.9599,143.68,143.65,8.3532172]
[1728406521054,10.107,143.72,143.65,8.3532172]
[1728406521260,6.9595,143.69,143.66,1.39179816]
[1728406521838,6.9595,143.69,143.65,6.9613]
[1728406522357,6.9595,143.69,143.66,1.39183175]
[1728406522549,6.9588,143.71,143.67,6.96]
[1728406522757,6.9589,143.7,143.66,6.9607]
[1728406524540,10.107,143.76,143.67,31.83934717]
[1728406524844,6.958,143.72,143.68,13.0781]
[1728406526257,6.9576,143.73,143.69,21.39824206]
[1728406526454,6.9576,143.73,143.69,20.00682097]
[1728406527146,6.957,143.74,143.7,6.9587]
[1728406531370,6.957,143.74,143.7,20.00612097]
[1728406532453,6.9561,143.76,143.72,20.00522097]
[1728406532668,6.956,143.76,143.74,13.04742097]
[1728406533875,17.3861,143.8,143.75,14.43840283]
[1728406534757,6.9553,143.78,143.75,14.43840283]
[1728406535161,6.9558,143.77,143.73,43.55942097]
[1728406536254,6.9552,143.78,143.74,21.39531263]
[1728406536453,6.9552,143.78,143.75,13.04742097]